bitfinex/quotes_BTCUSD_20240803
["timestamp","ask_amount","ask_price","bid_price","bid_amount"]
[1722713093808,0.003,60211.0,60206.0,0.1176]
[1722713094011,0.166093,60207.0,60206.0,0.1206]
[1722713094375,0.166093,60207.0,60206.0,0.1176]
[1722713095401,0.166093,60207.0,60206.0,0.1206]
[1722713095806,0.166093,60207.0,60206.0,0.005]
[1722713095807,0.830467,60207.0,60206.0,0.005]
[1722713096083,0.49828,60207.0,60206.0,0.005]
[1722713096289,0.830467,60207.0,60206.0,0.005]
[1722713096940,1.162654,60207.0,60206.0,0.005]
[1722713097130,0.830467,60207.0,60206.0,0.005]
[1722713101303,0.166093,60207.0,60206.0,0.005]
[1722713101661,0.830467,60207.0,60206.0,0.005]
[1722713101843,0.49828,60207.0,60206.0,0.01514724]
[1722713101973,0.49828,60207.0,60206.0,0.005]
[1722713102840,0.334168,60211.0,60206.0,0.01514724]
[1722713102972,0.166088,60209.0,60207.0,0.00157439]
[1722713103174,0.16609,60208.0,60207.0,0.01014501]
[1722713103562,0.498271,60208.0,60207.0,0.01014501]
[1722713103854,2.56770864,60208.0,60207.0,0.01014501]
[1722713103980,0.61838,60207.0,60206.0,0.002]
[1722713104214,0.830562,60200.0,60187.0,0.00157439]
[1722713104413,0.830562,60200.0,60186.0,0.114]
[1722713104414,1.46662757,60200.0,60186.0,0.114]
[1722713104619,1.30087668,60200.0,60187.0,0.00332272]
[1722713104820,1.30087668,60200.0,60187.0,0.00157439]
[1722713105022,1.30087668,60200.0,60186.0,0.114]
[1722713105269,1.30089409,60200.0,60186.0,0.114]
[1722713105821,1.30689409,60200.0,60186.0,0.114]
[1722713106025,1.30089409,60200.0,60186.0,0.280151]
[1722713106227,1.30089409,60200.0,60186.0,0.114]
[1722713106422,1.46664498,60200.0,60186.0,0.114]
[1722713106740,1.46664498,60200.0,60199.0,0.00183]
[1722713106741,1.80686998,60200.0,60199.0,0.00183]
[1722713106946,2.02166998,60200.0,60199.0,0.00183]
[1722713107157,2.02166998,60200.0,60199.0,0.00083]
[1722713107158,2.07023138,60200.0,60199.0,0.00083]
[1722713107361,2.08323138,60200.0,60199.0,0.00283]
[1722713107766,2.07723138,60200.0,60199.0,0.00083]
[1722713108033,2.07723138,60200.0,60199.0,0.00183]
[1722713108034,2.41845638,60200.0,60199.0,0.00183]
[1722713108191,2.42645638,60200.0,60199.0,0.00283]
[1722713108791,2.42645638,60200.0,60199.0,0.00183]
[1722713108792,2.07797709,60200.0,60199.0,0.00183]
[1722713109284,2.08697709,60200.0,60199.0,0.00283]
[1722713109668,1.3472836,60200.0,60199.0,0.00183]
[1722713110201,1.18153271,60200.0,60199.0,0.00183]
[1722713110619,1.18153271,60200.0,60199.0,0.00283]
[1722713110620,0.850562,60200.0,60199.0,0.00283]
[1722713111325,1.182787,60200.0,60199.0,0.00283]
[1722713114789,0.850562,60200.0,60199.0,0.00283]
[1722713115591,1.182787,60200.0,60199.0,0.00283]
[1722713116109,0.850562,60200.0,60199.0,0.00283]
[1722713117376,1.58165194,60200.0,60199.0,0.00283]
[1722713117582,1.63823643,60200.0,60199.0,0.00283]
[1722713117781,1.91387694,60200.0,60199.0,0.00283]
[1722713118013,1.97046031,60200.0,60199.0,0.00283]
[1722713118375,1.92388112,60200.0,60199.0,0.00283]
[1722713118578,1.97050095,60200.0,60199.0,0.00283]
[1722713118786,1.98050095,60200.0,60199.0,0.00283]
[1722713119066,1.97050095,60200.0,60199.0,0.00283]
[1722713119498,2.00050095,60200.0,60199.0,0.00283]
[1722713120365,2.04996953,60200.0,60199.0,0.00283]
[1722713120567,2.33272595,60200.0,60199.0,0.00283]
[1722713120777,2.38219333,60200.0,60199.0,0.00283]
[1722713120983,2.38219333,60200.0,60184.0,0.00083]
[1722713120984,0.01,60196.0,60184.0,0.00083]
[1722713121330,1.874786,60185.0,60184.0,0.00083]
[1722713121532,2.17865512,60185.0,60184.0,0.00083]
[1722713122234,2.04053689,60185.0,60184.0,0.00183]
[1722713122439,2.17869773,60185.0,60184.0,0.00283]
[1722713122644,2.17869773,60185.0,60184.0,0.00183]
[1722713122820,1.89689773,60185.0,60184.0,0.00183]
[1722713122956,1.89689773,60185.0,60184.0,0.00083]
[1722713123161,1.66113689,60185.0,60184.0,0.00083]
[1722713124003,1.67513689,60185.0,60184.0,0.00183]
[1722713124200,1.68519804,60185.0,60184.0,0.00083]
[1722713124884,1.68519804,60185.0,60184.0,0.00183]
[1722713125079,1.35289004,60185.0,60184.0,0.00183]
[1722713125688,1.36689004,60185.0,60184.0,0.00183]
[1722713126840,1.02452089,60185.0,60184.0,0.01183]
[1722713127060,0.526462,60185.0,60184.0,0.12203]
[1722713127289,0.194154,60185.0,60184.0,0.12203]
[1722713127483,0.526462,60185.0,60184.0,0.12203]
[1722713127637,0.526462,60185.0,60184.0,0.13295469]
[1722713127842,0.028,60185.0,60184.0,0.13295469]
[1722713128068,0.028,60185.0,60184.0,1.41337665]
[1722713128274,0.028,60185.0,60184.0,1.70212754]
[1722713128475,0.028,60185.0,60184.0,1.70412754]
[1722713128924,0.014,60185.0,60184.0,1.70412754]
[1722713129091,0.332216,60202.0,60201.0,0.01]
[1722713129292,0.49920101,60206.0,60205.0,0.03]
[1722713129930,0.49920101,60206.0,60205.0,0.04087444]
[1722713130125,0.49920101,60206.0,60205.0,0.03]
[1722713130633,0.83139301,60206.0,60205.0,0.03]
[1722713131420,0.83839301,60206.0,60205.0,0.031]
[1722713131644,0.50620101,60206.0,60205.0,0.031]
[1722713131846,0.50620101,60206.0,60205.0,0.04031034]
[1722713132214,0.50320101,60206.0,60205.0,0.03]
[1722713132619,0.50320101,60206.0,60205.0,0.03931034]
[1722713132860,0.50320101,60206.0,60205.0,0.03]
[1722713133063,0.83539301,60206.0,60205.0,0.03]
[1722713133266,0.1706639,60206.0,60201.0,0.01]
[1722713133467,0.498321,60202.0,60201.0,0.01]
[1722713133664,1.162749,60202.0,60201.0,0.01]
[1722713134615,0.830535,60202.0,60201.0,0.011]
[1722713134802,0.830535,60202.0,60201.0,0.035]
[1722713135024,0.498321,60202.0,60201.0,0.034]
[1722713135457,0.499321,60202.0,60201.0,0.039]
[1722713136230,0.001,60202.0,60201.0,0.039]
[1722713137904,0.167107,60202.0,60201.0,0.039]
[1722713138517,0.831535,60202.0,60201.0,0.019]
[1722713138675,0.831535,60202.0,60201.0,0.039]
[1722713139782,0.499321,60202.0,60201.0,0.039]
[1722713139949,0.167107,60202.0,60201.0,0.039]
[1722713140163,0.001,60202.0,60201.0,0.153]
[1722713140387,0.001,60202.0,60201.0,0.16231981]
[1722713141765,0.167107,60202.0,60201.0,0.16231981]
[1722713141972,0.499321,60202.0,60201.0,0.153]
[1722713142400,0.001,60202.0,60201.0,0.153]
[1722713142600,0.001,60202.0,60201.0,0.31911]
[1722713142801,0.001,60202.0,60201.0,0.32842981]
[1722713143019,0.001,60202.0,60201.0,0.16231981]
[1722713144254,0.831535,60202.0,60201.0,0.16231981]
[1722713144456,1.41949989,60202.0,60201.0,0.009]
[1722713144699,1.85171389,60202.0,60201.0,0.009]
[1722713144861,2.43384505,60202.0,60201.0,0.00104517]
[1722713145092,1.162945,60192.0,60191.0,0.01]
[1722713145265,1.32869589,60192.0,60191.0,0.01]
[1722713146503,1.33069589,60192.0,60191.0,0.01]
[1722713147490,1.66296589,60192.0,60191.0,0.01]
[1722713148172,1.66396589,60192.0,60191.0,0.01]
[1722713148368,1.66396589,60192.0,60184.0,0.00083]
[1722713148369,1.163078,60185.0,60184.0,0.00083]
[1722713148577,1.66113689,60185.0,60184.0,0.00083]
[1722713149569,1.67213689,60185.0,60184.0,0.00083]
[1722713149835,1.66113689,60185.0,60184.0,0.01083]
[1722713150247,1.67013689,60185.0,60184.0,0.01083]
[1722713150447,2.09274489,60185.0,60184.0,0.00083]
[1722713150657,2.08374489,60185.0,60184.0,0.00083]
[1722713151006,2.45180322,60185.0,60184.0,0.00083]
[1722713151204,2.79611122,60185.0,60184.0,0.00083]
[1722713151609,2.85272633,60185.0,60184.0,0.00083]
[1722713151811,2.79611122,60185.0,60184.0,0.00083]
[1722713151992,2.85275273,60185.0,60184.0,0.00083]
[1722713152225,2.79611122,60185.0,60184.0,0.00083]
[1722713152424,1.49566,60174.0,60173.0,0.00083]
[1722713152635,1.66141089,60174.0,60173.0,0.00083]
[1722713153042,1.66141089,60174.0,60173.0,0.01083]
[1722713153373,1.163291,60174.0,60173.0,0.03083]
[1722713153787,1.18934984,60174.0,60173.0,0.03083]
[1722713154322,1.35510073,60174.0,60173.0,0.00083]
[1722713154743,1.77776973,60174.0,60173.0,0.00083]
[1722713155734,0.2102,60173.0,60162.0,0.00084999]
[1722713155923,0.2102,60173.0,60160.0,0.24559229]
[1722713155924,1.706184,60161.0,60160.0,0.21234729]
[1722713156127,1.495984,60161.0,60160.0,0.22234729]
[1722713156339,1.66173489,60161.0,60160.0,0.21234729]
[1722713156728,1.68779904,60161.0,60160.0,0.21234729]
[1722713157057,1.68779904,60161.0,60157.0,0.00935]
[1722713157058,0.231428,60158.0,60157.0,0.00935]
[1722713157253,0.831197,60154.0,60146.0,0.0937]
[1722713157434,1.596155,60154.0,60146.0,0.0937]
[1722713157616,1.90400707,60154.0,60145.0,0.15934999]
[1722713157817,2.23648607,60154.0,60145.0,0.15934999]
[1722713158042,2.16649781,60154.0,60145.0,0.15934999]
[1722713158246,2.22335605,60154.0,60145.0,0.15934999]
[1722713158445,1.87467705,60154.0,60147.0,0.01]
[1722713158652,1.76190589,60154.0,60145.0,0.16934999]
[1722713158853,1.76190589,60154.0,60145.0,0.18934999]
[1722713159050,1.82710681,60154.0,60146.0,0.01]
[1722713159273,1.82710681,60154.0,60145.0,0.15934999]
[1722713159490,1.84086706,60154.0,60148.0,0.01935]
[1722713159706,1.50838806,60154.0,60153.0,0.16044167]
[1722713160002,0.20630864,60154.0,60153.0,0.39424167]
[1722713160207,0.52478764,60154.0,60153.0,0.39424167]
[1722713160439,0.526718,60154.0,60153.0,0.39424167]
[1722713160614,0.526718,60154.0,60153.0,0.40440082]
[1722713160821,0.498718,60154.0,60153.0,0.40440082]
[1722713161024,0.845197,60154.0,60153.0,0.38440082]
[1722713161235,1.34742689,60154.0,60153.0,0.25430082]
[1722713161484,1.01494789,60154.0,60153.0,0.18060082]
[1722713161674,1.01494789,60154.0,60153.0,0.18044167]
[1722713161675,0.018,60154.0,60153.0,0.18044167]
[1722713161984,0.664755,60173.0,60154.0,0.002]
[1722713162155,0.498562,60173.0,60172.0,0.01]
[1722713162372,0.332408,60167.0,60162.0,0.01]
[1722713162563,0.831075,60163.0,60162.0,0.01]
[1722713163104,0.498645,60163.0,60162.0,0.0095]
[1722713163349,0.831075,60163.0,60162.0,0.0095]
[1722713163571,0.166223,60160.0,60159.0,0.0916]
[1722713163717,0.498661,60161.0,60160.0,0.0095]
[1722713163919,0.66441189,60161.0,60160.0,0.0095]
[1722713164344,0.16575089,60161.0,60160.0,0.0295]
[1722713164544,0.33197089,60161.0,60160.0,0.0295]
[1722713164745,0.501645,60163.0,60162.0,0.0295]
[1722713165360,0.501645,60163.0,60162.0,0.01]
[1722713165567,0.835075,60163.0,60162.0,0.0295]
[1722713165908,0.832075,60163.0,60162.0,0.0295]
[1722713166117,0.831075,60163.0,60162.0,0.0295]
[1722713166316,0.498645,60163.0,60162.0,0.0295]
[1722713166522,0.332402,60169.0,60168.0,0.0195]
[1722713166656,0.332402,60169.0,60168.0,0.0295]
[1722713166657,0.66434589,60169.0,60168.0,0.0295]
[1722713166840,0.01016569,60173.0,60168.0,0.60992636]
[1722713167049,0.00091301,60206.0,60186.0,0.01]
[1722713167255,0.166118,60198.0,60197.0,0.01]
[1722713167505,0.00091301,60206.0,60200.0,0.0295]
[1722713167506,0.01062778,60201.0,60200.0,0.0295]
[1722713167722,0.498363,60197.0,60196.0,0.0095]
[1722713167932,0.166129,60194.0,60193.0,0.0095]
[1722713168127,0.498388,60194.0,60193.0,0.0095]
[1722713169157,0.166129,60194.0,60193.0,0.0095]
[1722713169354,0.166135,60192.0,60191.0,0.0295]
[1722713169554,0.166135,60192.0,60183.0,0.2023]
[1722713169555,0.16575089,60192.0,60187.0,0.01]
[1722713169757,0.498438,60188.0,60187.0,0.0295]
[1722713170043,0.99648089,60188.0,60187.0,0.0295]
[1722713170247,0.332314,60184.0,60183.0,0.01]
[1722713170525,0.498478,60183.0,60182.0,0.0095]
[1722713170725,0.66422889,60183.0,60182.0,0.0295]
[1722713171047,0.99654789,60183.0,60182.0,0.0295]
[1722713171339,0.49933699,60182.0,60181.0,0.0295]
[1722713171464,0.66423789,60182.0,60181.0,0.0295]
[1722713172610,0.16702299,60178.0,60177.0,0.01]
[1722713172813,0.16702299,60178.0,60177.0,0.0295]
[1722713172814,0.33192389,60178.0,60177.0,0.0295]
[1722713173011,0.66427089,60178.0,60177.0,0.0295]
[1722713173416,0.99661789,60178.0,60177.0,0.0295]
[1722713173617,0.66427089,60178.0,60177.0,0.0295]
[1722713173840,0.66527089,60178.0,60177.0,0.0435]
[1722713174055,0.66427089,60178.0,60177.0,0.0295]
[1722713174214,0.498528,60177.0,60176.0,0.0095]
[1722713174422,0.498528,60177.0,60166.0,0.166205]
[1722713174423,0.166181,60175.0,60174.0,0.0295]
[1722713174801,0.498544,60175.0,60174.0,0.0295]
[1722713175309,0.166181,60175.0,60174.0,0.0295]
[1722713175993,0.166181,60175.0,60174.0,0.0335]
[1722713176220,0.166181,60175.0,60174.0,0.04360556]
[1722713176446,0.166181,60175.0,60174.0,0.04760556]
[1722713178313,0.830907,60175.0,60174.0,0.04760556]
[1722713178522,0.498544,60175.0,60174.0,0.04760556]
[1722713178769,0.498544,60175.0,60174.0,0.0375]
[1722713178964,0.166181,60175.0,60174.0,0.0375]
[1722713179376,0.498538,60176.0,60175.0,0.0295]
[1722713179577,0.99664689,60176.0,60175.0,0.0295]
[1722713179782,0.830907,60175.0,60174.0,0.008]
[1722713180027,1.32902089,60175.0,60174.0,0.008]
[1722713180205,1.66138389,60175.0,60174.0,0.008]
[1722713180412,0.831047,60165.0,60164.0,0.0095]
[1722713180612,0.99679789,60165.0,60164.0,0.0095]
[1722713180783,0.498678,60159.0,60158.0,0.0295]
[1722713180987,0.66442889,60159.0,60158.0,0.03964639]
[1722713181340,0.99688089,60159.0,60158.0,0.01014639]
[1722713181744,0.831142,60158.0,60157.0,0.0095]
[1722713181948,0.99689289,60158.0,60157.0,0.0095]
[1722713182556,0.166228,60158.0,60157.0,0.0295]
[1722713182784,0.498612,60167.0,60166.0,0.0095]
[1722713182913,0.498612,60167.0,60160.0,0.02]
[1722713182914,0.166212,60164.0,60163.0,0.0095]
[1722713183115,0.99681089,60164.0,60163.0,0.0095]
[1722713183487,0.16575089,60164.0,60163.0,0.119]
[1722713183691,0.33196289,60164.0,60163.0,0.119]
[1722713183976,0.66438689,60164.0,60163.0,0.12913362]
[1722713184179,0.99681089,60164.0,60163.0,0.109]
[1722713184313,0.99681089,60164.0,60157.0,0.004]
[1722713184314,0.831115,60160.0,60159.0,0.01]
[1722713184516,0.99686589,60160.0,60159.0,0.01]
[1722713184724,0.99686589,60160.0,60159.0,0.03964383]
[1722713184969,0.99686589,60160.0,60159.0,0.02964383]
[1722713185278,0.99686589,60160.0,60159.0,0.0095]
[1722713185688,0.99686589,60160.0,60159.0,0.0295]
[1722713186133,0.99786589,60160.0,60159.0,0.0425]
[1722713186790,0.99786589,60160.0,60159.0,0.0465]
[1722713187005,0.69148418,60160.0,60159.0,0.0465]
[1722713187213,0.66541989,60160.0,60159.0,0.0265]
[1722713187433,0.99786589,60160.0,60159.0,0.0305]
[1722713188519,0.66541989,60160.0,60159.0,0.0305]
[1722713188743,0.99786589,60160.0,60159.0,0.0305]
[1722713190341,1.98449931,60160.0,60159.0,0.021]
[1722713190569,1.85055789,60160.0,60159.0,0.021]
[1722713190772,1.95055789,60160.0,60159.0,0.021]
[1722713190985,2.08876808,60160.0,60159.0,0.021]
[1722713191197,2.08876808,60160.0,60159.0,0.0305]
[1722713191319,1.43031189,60160.0,60159.0,0.021]
[1722713191691,1.43031189,60160.0,60159.0,0.017]
[1722713191896,1.163582,60159.0,60158.0,0.00083]
[1722713192103,1.32933289,60159.0,60158.0,0.00083]
[1722713192453,1.66178489,60159.0,60158.0,0.00083]
[1722713192851,1.66178489,60159.0,60158.0,0.01033]
[1722713193050,1.66178489,60159.0,60158.0,0.00083]
[1722713193502,1.7999981,60159.0,60158.0,0.00083]
[1722713193905,1.8109981,60159.0,60158.0,0.00183]
[1722713194128,2.1434501,60159.0,60158.0,0.00183]
[1722713194320,2.1007981,60159.0,60158.0,0.00183]
[1722713194977,2.1007981,60159.0,60158.0,0.00083]
[1722713194978,2.28403689,60159.0,60158.0,0.00083]
[1722713195176,2.08979823,60159.0,60158.0,0.00083]
[1722713195397,2.10179897,60159.0,60158.0,0.00183]
[1722713195591,2.08779897,60159.0,60158.0,0.00083]
[1722713195926,2.11379897,60159.0,60158.0,0.00183]
[1722713196327,2.43425097,60159.0,60158.0,0.00183]
[1722713196694,2.11579897,60159.0,60158.0,0.00183]
[1722713196811,2.11580801,60159.0,60158.0,0.00183]
[1722713197319,2.11580771,60159.0,60158.0,0.00183]
[1722713197873,1.97758489,60159.0,60158.0,0.00183]
[1722713198104,2.04699624,60159.0,60158.0,0.00183]
[1722713198290,2.04699624,60159.0,60158.0,0.01133]
[1722713198457,1.90878489,60159.0,60158.0,0.00183]
[1722713198659,2.04700295,60159.0,60158.0,0.00183]
[1722713199069,1.92800295,60159.0,60158.0,0.00183]
[1722713199472,1.92800295,60159.0,60158.0,0.01133]
[1722713200441,1.92800295,60159.0,60158.0,0.00183]
[1722713200834,1.78978489,60159.0,60158.0,0.00183]
[1722713201127,1.78978489,60159.0,60158.0,0.01133]
[1722713201456,1.78978489,60159.0,60158.0,0.00183]
[1722713202062,1.78978489,60159.0,60158.0,0.01133]
[1722713202256,1.45733289,60159.0,60158.0,0.01133]
[1722713202785,1.45733289,60159.0,60158.0,0.02147639]
[1722713203003,1.35733289,60159.0,60158.0,0.02147639]
[1722713203154,1.32933289,60159.0,60158.0,0.02047639]
[1722713203600,1.35333289,60159.0,60158.0,0.02147639]
[1722713203813,1.35333289,60159.0,60158.0,0.02047639]
[1722713204013,1.35333289,60159.0,60158.0,0.01097639]
[1722713204191,1.36433289,60159.0,60158.0,0.01197639]
[1722713204369,1.35233289,60159.0,60158.0,0.01197639]
[1722713204569,1.34133289,60159.0,60158.0,0.02047639]
[1722713204796,1.32933289,60159.0,60158.0,0.02047639]
[1722713205254,1.34033289,60159.0,60158.0,0.02047639]
[1722713205512,1.34033289,60159.0,60158.0,0.01097639]
[1722713205513,1.32933289,60159.0,60158.0,0.01097639]
[1722713205710,1.32933289,60159.0,60158.0,0.02047639]
[1722713205711,1.33433289,60159.0,60158.0,0.02047639]
[1722713206250,1.33533289,60159.0,60158.0,0.02247639]
[1722713206450,1.34233289,60159.0,60158.0,0.02247639]
[1722713206788,1.33633289,60159.0,60158.0,0.02047639]
[1722713207012,1.33633289,60159.0,60158.0,0.02147639]
[1722713207013,1.34733289,60159.0,60158.0,0.02147639]
[1722713207159,1.34733289,60159.0,60158.0,0.01197639]
[1722713207756,1.34733289,60159.0,60158.0,0.00183]
[1722713208136,1.35833289,60159.0,60158.0,0.00183]
[1722713208360,1.35833289,60159.0,60158.0,0.01133]
[1722713209162,1.35833289,60159.0,60158.0,0.00183]
[1722713209339,1.49653497,60159.0,60158.0,0.00183]
[1722713209545,1.49653497,60159.0,60158.0,0.01133]
[1722713210770,0.83163097,60159.0,60158.0,0.01133]
[1722713210973,0.69342889,60159.0,60158.0,0.02147639]
[1722713211440,1.02588089,60159.0,60158.0,0.02147639]
[1722713211596,1.35833289,60159.0,60158.0,0.02147639]
[1722713212023,1.34733289,60159.0,60158.0,0.02147639]
[1722713212227,1.34733289,60159.0,60158.0,0.01133]
[1722713212434,1.35433289,60159.0,60158.0,0.01133]
[1722713212600,1.01488089,60159.0,60158.0,0.01133]
[1722713212796,1.00388089,60159.0,60158.0,0.02047639]
[1722713213010,1.00588089,60159.0,60158.0,0.02147639]
[1722713213205,1.00588089,60159.0,60158.0,0.01133]
[1722713213411,0.99688089,60159.0,60158.0,0.02047639]
[1722713213607,0.99888089,60159.0,60158.0,0.02047639]
[1722713213808,1.33133289,60159.0,60158.0,0.02047639]
[1722713214019,1.33133289,60159.0,60153.0,0.11719267]
[1722713214020,2.003934,60154.0,60153.0,0.11719267]
[1722713214262,2.003934,60154.0,60150.0,0.00104]
[1722713214263,0.831227,60152.0,60150.0,0.00104]
[1722713214436,1.46769214,60152.0,60150.0,0.00104]
[1722713214640,1.90018314,60152.0,60150.0,0.00104]
[1722713215877,1.90018314,60152.0,60151.0,0.051]
[1722713215878,1.96132931,60152.0,60151.0,0.051]
[1722713216081,1.91418314,60152.0,60151.0,0.051]
[1722713217240,1.90819843,60152.0,60151.0,0.051]
[1722713217442,1.93619843,60152.0,60151.0,0.051]
[1722713217698,1.92219843,60152.0,60151.0,0.05]
[1722713218071,1.9553446,60152.0,60151.0,0.05]
[1722713218402,2.25468943,60152.0,60151.0,0.05]
[1722713218754,2.34936458,60152.0,60151.0,0.05]
[1722713218955,2.3018356,60152.0,60151.0,0.05]
[1722713219159,2.26868943,60152.0,60151.0,0.051]
[1722713219371,1.93619843,60152.0,60151.0,0.051]
[1722713219773,1.98334963,60152.0,60151.0,0.051]
[1722713220291,1.93620346,60152.0,60151.0,0.0605]
[1722713220499,1.60371246,60152.0,60151.0,0.16]
[1722713220872,1.60371246,60152.0,60151.0,0.16975478]
[1722713221302,1.58971246,60152.0,60151.0,0.16975478]
[1722713221677,1.58971246,60152.0,60151.0,0.18975478]
[1722713221678,0.70050218,60152.0,60151.0,0.18975478]
[1722713221993,1.02497789,60152.0,60151.0,0.18975478]
[1722713222201,0.99697789,60152.0,60151.0,0.18875478]
[1722713222395,0.66448689,60152.0,60151.0,0.18875478]
[1722713222736,0.67848689,60152.0,60151.0,0.18975478]
[1722713223077,0.68348689,60152.0,60151.0,0.18975478]
[1722713223510,0.68348689,60152.0,60151.0,0.16975478]
[1722713223511,1.01597789,60152.0,60151.0,0.16975478]
[1722713223825,1.01597789,60152.0,60151.0,0.18975478]
[1722713223826,1.36046889,60152.0,60151.0,0.18975478]
[1722713223961,1.36046889,60152.0,60151.0,0.06075478]
[1722713224184,1.36046889,60152.0,60151.0,0.07025478]
[1722713224185,1.48668346,60152.0,60151.0,0.07025478]
[1722713224401,1.49168346,60152.0,60151.0,0.07025478]
[1722713224999,1.49168346,60152.0,60151.0,0.06075478]
[1722713225202,0.83131,60146.0,60145.0,0.06842753]
[1722713225378,0.99706089,60146.0,60145.0,0.06842753]
[1722713225620,1.32958489,60146.0,60145.0,0.06842753]
[1722713226421,1.32958489,60146.0,60145.0,0.05842753]
[1722713226596,1.32958489,60146.0,60145.0,0.06042753]
[1722713226809,1.46781054,60146.0,60145.0,0.06042753]
[1722713227012,1.32958489,60146.0,60145.0,0.06042753]
[1722713227334,1.32958489,60146.0,60145.0,0.06242753]
[1722713227891,1.32958489,60146.0,60145.0,0.06042753]
[1722713228086,0.99706089,60146.0,60145.0,0.05842753]
[1722713228288,1.00306089,60146.0,60145.0,0.17652753]
[1722713228726,0.99706089,60146.0,60145.0,0.17652753]
[1722713228876,1.00501074,60146.0,60145.0,0.17652753]
[1722713229274,1.33753474,60146.0,60145.0,0.17652753]
[1722713229488,1.01101074,60146.0,60145.0,0.17752753]
[1722713229685,0.17175089,60146.0,60145.0,0.17752753]
[1722713229891,0.33201289,60146.0,60145.0,0.17652753]
[1722713230092,0.69360563,60146.0,60145.0,0.17652753]
[1722713230295,0.69960563,60146.0,60145.0,0.17652753]
[1722713230542,0.67353689,60146.0,60145.0,0.17652753]
[1722713230713,0.66953689,60146.0,60145.0,0.17652753]
[1722713230912,0.66453689,60146.0,60145.0,0.17652753]
[1722713231113,0.99706089,60146.0,60145.0,0.17652753]
[1722713231770,0.33201289,60146.0,60145.0,0.17652753]
[1722713231976,0.16575089,60146.0,60145.0,0.17652753]
[1722713232416,0.16575089,60146.0,60145.0,0.29712753]
[1722713232620,0.00792306,60150.0,60149.0,0.02]
[1722713232820,0.00792306,60150.0,60149.0,0.2387]
[1722713233119,0.166246,60152.0,60151.0,0.02]
[1722713233342,0.33199689,60152.0,60151.0,0.02]
[1722713233552,0.332472,60156.0,60155.0,0.02]
[1722713233756,0.166223,60160.0,60159.0,0.02]
[1722713233946,0.498669,60160.0,60159.0,0.02]
[1722713234147,0.598669,60160.0,60159.0,0.02]
[1722713234275,0.498702,60156.0,60155.0,0.02]
[1722713234482,0.99692089,60156.0,60155.0,0.02]
[1722713234838,0.33198489,60156.0,60155.0,0.03015017]
[1722713235036,0.66445389,60156.0,60155.0,0.02]
[1722713235240,0.66445389,60156.0,60155.0,0.03015017]
[1722713235443,0.99692289,60156.0,60155.0,0.03015017]
[1722713235682,0.99692289,60156.0,60155.0,0.02]
[1722713236033,0.66445389,60156.0,60155.0,0.02]
[1722713236237,0.66445389,60156.0,60155.0,0.03015017]
[1722713236462,0.66445389,60156.0,60155.0,0.02]
[1722713236800,0.66445389,60156.0,60155.0,0.03115017]
[1722713237008,0.33198489,60156.0,60155.0,0.03115017]
[1722713237216,0.028,60160.0,60159.0,0.737378]
[1722713237379,0.014,60160.0,60159.0,1.15274805]
[1722713237558,0.014,60160.0,60159.0,1.16210723]
[1722713237760,0.014,60160.0,60159.0,1.07918918]
[1722713238003,0.014,60160.0,60159.0,0.74673718]
[1722713238197,0.014,60160.0,60159.0,0.24805918]
[1722713238407,0.014,60160.0,60159.0,0.74673718]
[1722713238582,0.015,60160.0,60159.0,1.08518918]
[1722713238783,0.015,60160.0,60159.0,1.41764118]
[1722713239183,0.015,60160.0,60159.0,1.08518918]
[1722713239384,0.001,60160.0,60159.0,1.08518918]
[1722713239583,0.001,60160.0,60159.0,0.75273718]
[1722713239792,0.002,60160.0,60159.0,0.76573718]
[1722713241457,0.02806293,60160.0,60159.0,0.26705918]
[1722713241591,0.19428593,60160.0,60159.0,0.26705918]
[1722713241792,0.02806293,60160.0,60159.0,0.26705918]
[1722713242124,0.19428593,60160.0,60159.0,0.26705918]
[1722713242304,0.02806293,60160.0,60159.0,0.26705918]
[1722713242507,0.002,60160.0,60159.0,0.26705918]
[1722713243762,0.168223,60160.0,60159.0,0.26705918]
[1722713243959,0.500669,60160.0,60159.0,0.2577]
[1722713244183,0.500669,60160.0,60159.0,0.02835918]
[1722713244184,1.09796589,60160.0,60159.0,0.02835918]
[1722713244383,1.76285789,60160.0,60159.0,0.02835918]
[1722713244598,2.02175526,60160.0,60159.0,0.019]
[1722713245140,2.45420126,60160.0,60159.0,0.019]
[1722713246367,2.45320976,60160.0,60159.0,0.006]
[1722713246721,1.163795,60148.0,60147.0,0.02]
[1722713247007,1.163795,60148.0,60147.0,0.2457]
[1722713247008,0.498769,60148.0,60147.0,0.2457]
[1722713247309,1.28753374,60160.0,60159.0,0.013]
[1722713247611,1.45328463,60160.0,60159.0,0.013]
[1722713247805,1.45328463,60160.0,60159.0,0.01]
[1722713247806,1.45228463,60160.0,60159.0,0.01]
[1722713248016,1.43728463,60160.0,60159.0,0.01]
[1722713248434,0.498744,60151.0,60150.0,0.02]
[1722713248577,0.99699089,60151.0,60150.0,0.02]
[1722713248945,0.66449489,60151.0,60150.0,0.030164]
[1722713249093,0.66449489,60151.0,60150.0,0.02]
[1722713249507,0.99699089,60151.0,60150.0,0.02]
[1722713249710,0.99699089,60151.0,60149.0,0.02]
[1722713249711,0.166251,60150.0,60149.0,0.02]
[1722713249912,0.498753,60150.0,60149.0,0.02]
[1722713250887,0.99700589,60150.0,60149.0,0.02]
[1722713251093,0.99900589,60150.0,60149.0,0.02]
[1722713251298,0.99700589,60150.0,60149.0,0.02]
[1722713251492,1.32950789,60150.0,60149.0,0.02]
[1722713251699,0.99700589,60150.0,60149.0,0.02]
[1722713252637,0.99800589,60150.0,60149.0,0.02]
[1722713252844,0.99900589,60150.0,60149.0,0.02]
[1722713253349,1.33350789,60150.0,60149.0,0.02]
[1722713253678,1.32950789,60150.0,60149.0,0.02]
[1722713254002,1.00200589,60150.0,60149.0,0.02]
[1722713254456,1.33450789,60150.0,60149.0,0.021]
[1722713254654,1.00900589,60150.0,60149.0,0.021]
[1722713255891,0.99700589,60150.0,60149.0,0.02]
[1722713256323,1.00900589,60150.0,60149.0,0.021]